fUST/lending_fUST_20250713
["ID","MTS","AMOUNT","RATE_DAILY","PERIOD"]
[371757816,1752418274763,-1104.11,0.00021095,2]
[371757817,1752418274773,-460.0,0.00021095,2]
[371757818,1752418274783,-460.0,0.00021095,2]
[371757819,1752418274793,-638.59,0.00021095,2]
[371757820,1752418274803,-460.0,0.00021095,2]
[371757821,1752418274813,-506.49,0.00021095,2]
[371757822,1752418274822,-627.52,0.00021095,2]
[371757823,1752418274831,-567.94,0.00021095,2]
[371757824,1752418274841,-460.0,0.00021095,2]
[371757825,1752418274850,-1699.88,0.00021095,2]
[371757826,1752418274860,-1986.66,0.00021095,2]
[371757827,1752418274869,-477.26,0.00021095,2]
[371757828,1752418274879,-188.4593207,0.00021095,2]
[371757829,1752418274888,-540.15,0.00021095,2]
[371757830,1752418274897,-556.22,0.00021095,2]
[371757831,1752418274907,-920.23,0.00021095,2]
[371757832,1752418274916,-511.11,0.00021095,2]
[371757833,1752418274929,-1426.91,0.00021095,2]
[371757834,1752418274939,-517.62,0.00021095,2]
[371757835,1752418274949,-1093.81,0.00021095,2]
[371757836,1752418274958,-2419.85,0.00021095,2]
[371757837,1752418274968,-479.39,0.00021095,2]
[371757838,1752418274980,-655.11,0.00021095,2]
[371757839,1752418274990,-519.26843284,0.00021095,2]
[371757840,1752418275001,-671.19,0.00021095,2]
[371757841,1752418275011,-1365.06,0.00021095,2]
[371757842,1752418275021,-1289.08,0.00021095,2]
[371757843,1752418275030,-618.64092927,0.00021136,2]
[371757844,1752418275040,-2474.56371707,0.00021136,2]
[371757845,1752418275050,-5567.7683634,0.00021136,2]
[371757846,1752418275059,-9898.25486827,0.00021136,2]
[371757847,1752418275069,-3396.57186598,0.00021136,2]
[371757848,1752418275079,-2754.83870561,0.00021237,2]
[371757849,1752418275089,-2332.74,0.000213,2]
[371757850,1752418275099,-823.0,0.00021325,2]
[371757851,1752418275108,-2138.69426701,0.00021369,2]
[371757852,1752418275119,-716.02,0.00021369,2]
[371757853,1752418275130,-460.0,0.00021369,2]
[371757854,1752418275140,-528.73,0.00021369,2]
[371757855,1752418275151,-151.0,0.00021369,2]
[371757856,1752418275161,-532.38,0.00021369,2]
[371757857,1752418275171,-276.390018,0.00021369,2]
[371757858,1752418275181,-662.85,0.00021369,2]
[371757859,1752418275191,-276.390018,0.00021369,2]
[371757860,1752418275201,-615.76,0.00021369,2]
[371757861,1752418275211,-583.2,0.00021369,2]
[371757862,1752418275223,-636.27,0.00021369,2]
[371757863,1752418275237,-460.0,0.00021369,2]
[371757864,1752418275249,-2748.22,0.00021369,2]
[371757865,1752418275259,-889.53,0.00021369,2]
[371757866,1752418275269,-460.0,0.00021369,2]
[371757867,1752418275290,-460.0,0.00021369,2]
[371757868,1752418275310,-788.96,0.00021369,2]
[371757869,1752418275328,-477.18,0.00021369,2]
[371757870,1752418275349,-700.91,0.00021369,2]
[371757871,1752418275370,-460.0,0.00021369,2]
[371757872,1752418275389,-460.0,0.00021369,2]
[371757873,1752418275408,-522.68,0.00021369,2]
[371757874,1752418275423,-3739.79,0.00021369,2]
[371757875,1752418275441,-1104.11,0.00021369,2]
[371757876,1752418275457,-460.0,0.00021369,2]
[371757877,1752418275482,-460.0,0.00021369,2]
[371757878,1752418275498,-638.59,0.00021369,2]
[371757879,1752418275514,-361.6,0.00021369,2]
[371757880,1752418275534,-506.49,0.00021369,2]
[371757881,1752418275553,-627.52,0.00021369,2]
[371757882,1752418275566,-567.94,0.00021369,2]
[371757883,1752418275582,-460.0,0.00021369,2]
[371757884,1752418275599,-1699.88,0.00021369,2]
[371757885,1752418275615,-1986.66,0.00021369,2]
[371757886,1752418275630,-477.26,0.00021369,2]
[371757887,1752418275645,-540.15,0.00021369,2]
[371757888,1752418275661,-556.22,0.00021369,2]
[371757889,1752418275676,-920.23,0.00021369,2]
[371757890,1752418275692,-511.11,0.00021369,2]
[371757891,1752418275707,-1426.91,0.00021369,2]
[371757892,1752418275722,-517.62,0.00021369,2]
[371757893,1752418275744,-1093.81,0.00021369,2]
[371757894,1752418275759,-2419.85,0.00021369,2]
[371757895,1752418275774,-479.39,0.00021369,2]
[371757896,1752418275790,-655.11,0.00021369,2]
[371757897,1752418275805,-671.19,0.00021369,2]
[371757898,1752418275816,-1365.06,0.00021369,2]
[371757899,1752418275826,-1289.08,0.00021369,2]
[371757900,1752418275835,-1077.62,0.000214,2]
[371757901,1752418275845,-2405.11,0.000215,2]
[371757902,1752418275855,-660.0,0.00021518,2]
[371757903,1752418275864,-180.22167266,0.00021641,2]
[371757904,1752418275874,-716.02,0.00021643,2]
[371757905,1752418275883,-460.0,0.00021643,2]
[371757906,1752418275893,-528.73,0.00021643,2]
[371757907,1752418275903,-532.38,0.00021643,2]
[371757908,1752418275912,-662.85,0.00021643,2]
[371757909,1752418275922,-615.76,0.00021643,2]
[371757910,1752418275931,-151.0,0.00021643,2]
[371757911,1752418275941,-583.2,0.00021643,2]
[371757912,1752418275952,-636.27,0.00021643,2]
[371757913,1752418275963,-460.0,0.00021643,2]
[371757914,1752418275973,-2748.22,0.00021643,2]
[371757915,1752418275988,-889.53,0.00021643,2]
[371757916,1752418275998,-460.0,0.00021643,2]
[371757917,1752418276007,-460.0,0.00021643,2]
[371757918,1752418276016,-788.96,0.00021643,2]
[371757919,1752418276026,-477.18,0.00021643,2]
[371757920,1752418276235,-700.91,0.00021643,2]
[371757921,1752418276259,-460.0,0.00021643,2]
[371757922,1752418276271,-460.0,0.00021643,2]
[371757923,1752418276280,-522.68,0.00021643,2]
[371757924,1752418276291,-3739.79,0.00021643,2]
[371757925,1752418276301,-1104.11,0.00021643,2]
[371757926,1752418276310,-460.0,0.00021643,2]
[371757927,1752418276320,-460.0,0.00021643,2]
[371757928,1752418276330,-638.59,0.00021643,2]
[371757929,1752418276339,-506.49,0.00021643,2]
[371757930,1752418276349,-627.52,0.00021643,2]
[371757931,1752418276359,-567.94,0.00021643,2]
[371757932,1752418276368,-460.0,0.00021643,2]
[371757933,1752418276378,-1699.88,0.00021643,2]
[371757934,1752418276388,-1986.66,0.00021643,2]
[371757935,1752418276400,-477.26,0.00021643,2]
[371757936,1752418276410,-540.15,0.00021643,2]
[371757937,1752418276418,-556.22,0.00021643,2]
[371757938,1752418276427,-920.23,0.00021643,2]
[371757939,1752418276437,-511.11,0.00021643,2]
[371757940,1752418276446,-1426.91,0.00021643,2]
[371757941,1752418276456,-517.62,0.00021643,2]
[371757942,1752418276465,-1093.81,0.00021643,2]
[371757943,1752418276475,-2419.85,0.00021643,2]
[371757944,1752418276487,-479.39,0.00021643,2]
[371757945,1752418276496,-655.11,0.00021643,2]
[371757946,1752418276506,-671.19,0.00021643,2]
[371757947,1752418276516,-1365.06,0.00021643,2]
[371757948,1752418276525,-1289.08,0.00021643,2]
[371757949,1752418276535,-226.430392,0.00021917,2]
[371757950,1752418276545,-226.430392,0.00021917,2]
[371757951,1752418276554,-151.0,0.00021917,2]
[371757952,1752418276564,-239.03816,0.00021917,2]
[371757953,1752418276573,-239.03816,0.00021917,2]
[371757954,1752418276583,-560.77925,0.00021917,2]
[371757955,1752418276593,-560.77925,0.00021917,2]
[371757956,1752418276602,-716.02,0.00021917,2]
[371757957,1752418276612,-460.0,0.00021917,2]
[371757958,1752418276621,-528.73,0.00021917,2]
[371757959,1752418276631,-532.38,0.00021917,2]
[371757960,1752418276641,-662.85,0.00021917,2]
[371757961,1752418276651,-615.76,0.00021917,2]
[371757962,1752418276660,-583.2,0.00021917,2]
[371757963,1752418276670,-636.27,0.00021917,2]
[371757964,1752418276680,-460.0,0.00021917,2]
[371757965,1752418276689,-2748.22,0.00021917,2]
[371757966,1752418276699,-889.53,0.00021917,2]
[371757967,1752418276708,-460.0,0.00021917,2]
[371757968,1752418276718,-244.26,0.00021917,2]
[371757969,1752418276732,-788.96,0.00021917,2]
[371757970,1752418276744,-477.18,0.00021917,2]
[371757971,1752418276754,-700.91,0.00021917,2]
[371757972,1752418276764,-460.0,0.00021917,2]
[371757973,1752418276774,-460.0,0.00021917,2]
[371757974,1752418276784,-522.68,0.00021917,2]
[371757975,1752418276795,-3739.79,0.00021917,2]
[371757976,1752418276810,-1104.11,0.00021917,2]
[371757977,1752418276819,-460.0,0.00021917,2]
[371757978,1752418276828,-460.0,0.00021917,2]
[371757979,1752418276838,-638.59,0.00021917,2]
[371757980,1752418276847,-506.49,0.00021917,2]
[371757981,1752418276856,-627.52,0.00021917,2]
[371757982,1752418276866,-567.94,0.00021917,2]
[371757983,1752418276875,-518.97715383,0.00021917,2]
[371757984,1752418276885,-1699.88,0.00021917,2]
[371757985,1752418276894,-1986.66,0.00021917,2]
[371757986,1752418276904,-477.26,0.00021917,2]
[371757987,1752418276913,-540.15,0.00021917,2]
[371757988,1752418276922,-556.22,0.00021917,2]
[371757989,1752418276932,-920.23,0.00021917,2]
[371757990,1752418276941,-511.11,0.00021917,2]
[371757991,1752418276951,-1426.91,0.00021917,2]
[371757992,1752418276960,-151.0,0.00021917,2]
[371757993,1752418276969,-517.62,0.00021917,2]
[371757994,1752418276982,-1093.81,0.00021917,2]
[371757995,1752418276991,-2419.85,0.00021917,2]
[371757996,1752418277001,-479.39,0.00021917,2]
[371757997,1752418277011,-655.11,0.00021917,2]
[371757998,1752418277020,-260.018655,0.00021917,2]
[371757999,1752418277030,-260.018655,0.00021917,2]
[371758000,1752418277039,-671.19,0.00021917,2]
[371758001,1752418277049,-1365.06,0.00021917,2]
[371758002,1752418277060,-1289.08,0.00021917,2]
[371758003,1752418277073,-257.943425,0.00021918,2]
[371758004,1752418277085,-257.943425,0.00021918,2]
[371758005,1752418277096,-257.943425,0.00021918,2]
[371758006,1752418277109,-257.943425,0.00021918,2]
[371758007,1752418277121,-257.943425,0.00021918,2]
[371758008,1752418277133,-257.943425,0.00021918,2]
[371758009,1752418277147,-257.943425,0.00021918,2]
[371758010,1752418277160,-257.943425,0.00021918,2]
[371758011,1752418277172,-257.943425,0.00021918,2]
[371758012,1752418277184,-257.943425,0.00021918,2]
[371758013,1752418277196,-257.943425,0.00021918,2]
[371758014,1752418277208,-257.943425,0.00021918,2]
[371758015,1752418277222,-2754.83870561,0.00022043,2]
[371758016,1752418277237,-760.0,0.00022065,2]
[371758017,1752418277248,-2154.0,0.00022123,2]
[371758018,1752418277260,-716.02,0.00022191,2]
[371758019,1752418277273,-425.78781306,0.00022191,2]
[371758020,1752418277286,-528.73,0.00022191,2]
[371758021,1752418277299,-532.38,0.00022191,2]
[371758022,1752418277312,-662.85,0.00022191,2]
[371758023,1752418277323,-615.76,0.00022191,2]
[371758024,1752418277334,-583.2,0.00022191,2]
[371758025,1752418277344,-636.27,0.00022191,2]
[371758026,1752418277355,-460.0,0.00022191,2]
[371758027,1752418277365,-2748.22,0.00022191,2]
[371758028,1752418277376,-889.53,0.00022191,2]
[371758029,1752418277387,-446.25,0.00022191,2]
[371758030,1752418277397,-788.96,0.00022191,2]
[371758031,1752418277406,-477.18,0.00022191,2]
[371758032,1752418277416,-700.91,0.00022191,2]
[371758033,1752418277426,-460.0,0.00022191,2]
[371758034,1752418277435,-402.5,0.00022191,2]
[371758035,1752418277445,-522.68,0.00022191,2]
[371758036,1752418277455,-3739.79,0.00022191,2]
[371758037,1752418277465,-1104.11,0.00022191,2]
[371758038,1752418277477,-460.0,0.00022191,2]
[371758039,1752418277486,-460.0,0.00022191,2]
[371758040,1752418277496,-638.59,0.00022191,2]
[371758041,1752418277505,-506.49,0.00022191,2]
[371758042,1752418277515,-627.52,0.00022191,2]
[371758043,1752418277524,-567.94,0.00022191,2]
[371758044,1752418277534,-1699.88,0.00022191,2]
[371758045,1752418277546,-1986.66,0.00022191,2]
[371758046,1752418277556,-477.26,0.00022191,2]
[371758047,1752418277565,-540.15,0.00022191,2]
[371758048,1752418277575,-556.22,0.00022191,2]
[371758049,1752418277585,-920.23,0.00022191,2]
[371758050,1752418277595,-511.11,0.00022191,2]
[371758051,1752418277605,-1426.91,0.00022191,2]
[371758052,1752418277614,-517.62,0.00022191,2]
[371758053,1752418277624,-1093.81,0.00022191,2]
[371758054,1752418277633,-2419.85,0.00022191,2]
[371758055,1752418277642,-479.39,0.00022191,2]
[371758056,1752418277652,-655.11,0.00022191,2]
[371758057,1752418277662,-671.19,0.00022191,2]
[371758058,1752418277671,-1365.06,0.00022191,2]
[371758059,1752418277681,-1289.08,0.00022191,2]
[371758060,1752418277690,-231.28369723,0.00022297,2]
[371758061,1752418277701,-663.53901379,0.000223,2]
[371758062,1752418277710,-191.0,0.00022309,2]
[371758063,1752418277720,-191.0,0.00022335,2]
[371758064,1752418277732,-191.0,0.00022353,2]
[371758065,1752418277741,-191.0,0.00022459,2]
[371758066,1752418277751,-716.02,0.00022465,2]
[371758067,1752418277761,-528.73,0.00022465,2]
[371758068,1752418277770,-532.38,0.00022465,2]
[371758069,1752418277780,-662.85,0.00022465,2]
[371758070,1752418277790,-615.76,0.00022465,2]
[371758071,1752418277803,-583.2,0.00022465,2]
[371758072,1752418277812,-636.27,0.00022465,2]
[371758073,1752418277822,-405.33939396,0.00022465,2]
[371758074,1752418277831,-2748.22,0.00022465,2]
[371758075,1752418277840,-889.53,0.00022465,2]
[371758076,1752418277850,-788.96,0.00022465,2]
[371758077,1752418277860,-477.18,0.00022465,2]
[371758078,1752418277869,-700.91,0.00022465,2]
[371758079,1752418277879,-188.66,0.00022465,2]
[371758080,1752418277889,-522.68,0.00022465,2]
[371758081,1752418277899,-3739.79,0.00022465,2]
[371758082,1752418277909,-1104.11,0.00022465,2]
[371758083,1752418277918,-460.0,0.00022465,2]
[371758084,1752418277928,-495.55339422,0.00022465,2]
[371758085,1752418277937,-638.59,0.00022465,2]
[371758086,1752418277946,-506.49,0.00022465,2]
[371758087,1752418277956,-627.52,0.00022465,2]
[371758088,1752418277966,-567.94,0.00022465,2]
[371758089,1752418277978,-1699.88,0.00022465,2]
[371758090,1752418277988,-1986.66,0.00022465,2]
[371758091,1752418277998,-477.26,0.00022465,2]
[371758092,1752418278007,-540.15,0.00022465,2]
[371758093,1752418278017,-556.22,0.00022465,2]
[371758094,1752418278026,-920.23,0.00022465,2]
[371758095,1752418278036,-511.11,0.00022465,2]
[371758096,1752418278045,-1426.91,0.00022465,2]
[371758097,1752418278056,-517.62,0.00022465,2]
[371758098,1752418278065,-1093.81,0.00022465,2]
[371758099,1752418278074,-2419.85,0.00022465,2]
[371758100,1752418278085,-479.39,0.00022465,2]
[371758101,1752418278094,-655.11,0.00022465,2]
[371758102,1752418278104,-671.19,0.00022465,2]
[371758103,1752418278113,-1365.06,0.00022465,2]
[371758104,1752418278123,-1289.08,0.00022465,2]
[371758105,1752418278133,-191.0,0.0002247,2]
[371758106,1752418278142,-191.0,0.00022523,2]
[371758107,1752418278152,-191.0,0.00022562,2]
[371758108,1752418278162,-191.0,0.00022591,2]
[371758109,1752418278172,-477.993214,0.00022603,2]
[371758110,1752418278183,-860.0,0.00022613,2]
[371758111,1752418278193,-716.24,0.00022739,2]
[371758112,1752418278203,-528.9078463,0.00022739,2]
[371758113,1752418278214,-532.6,0.00022739,2]
[371758114,1752418278232,-662.89141826,0.00022739,2]
[371758115,1752418278245,-615.94,0.00022739,2]
[371758116,1752418278256,-583.36,0.00022739,2]
[371758117,1752418278266,-636.45974326,0.00022739,2]
[371758118,1752418278276,-2748.38431033,0.00022739,2]
[371758119,1752418278286,-889.58,0.00022739,2]
[371758120,1752418278296,-789.06,0.00022739,2]
[371758121,1752418278307,-477.26980338,0.00022739,2]
[371758122,1752418278317,-701.11,0.00022739,2]
[371758123,1752418278326,-522.70349346,0.00022739,2]
[371758124,1752418278336,-3739.94137612,0.00022739,2]
[371758125,1752418278346,-1104.15,0.00022739,2]
[371758126,1752418278356,-638.75,0.00022739,2]
[371758127,1752418278365,-506.65701847,0.00022739,2]
[371758128,1752418278375,-627.73,0.00022739,2]
[371758129,1752418278384,-568.07,0.00022739,2]
[371758130,1752418278394,-1700.07,0.00022739,2]
[371758131,1752418278404,-1986.85,0.00022739,2]
[371758132,1752418278414,-477.33,0.00022739,2]
[371758133,1752418278423,-540.38,0.00022739,2]
[371758134,1752418278433,-556.27408004,0.00022739,2]
[371758135,1752418278442,-920.45,0.00022739,2]
[371758136,1752418278452,-511.15,0.00022739,2]
[371758137,1752418278462,-1427.11,0.00022739,2]
[371758138,1752418278471,-517.83766755,0.00022739,2]
[371758139,1752418278483,-1093.93645765,0.00022739,2]
[371758140,1752418278492,-2419.96180382,0.00022739,2]
[371758141,1752418278502,-479.5,0.00022739,2]
[371758142,1752418278512,-655.12,0.00022739,2]
[371758143,1752418278522,-671.4,0.00022739,2]
[371758144,1752418278531,-1365.18611435,0.00022739,2]
[371758145,1752418278541,-1289.28,0.00022739,2]
[371758146,1752418278551,-191.0,0.0002284,2]
[371758147,1752418278560,-2754.83870561,0.00022848,2]
[371758148,1752418278570,-287.195368,0.00023063,2]
[371758149,1752418278579,-191.0,0.00023154,2]
[371758150,1752418278589,-960.0,0.00023161,2]
[371758151,1752418278598,-191.0,0.00023165,2]
[371758152,1752418278608,-191.0,0.00023204,2]
[371758153,1752418278618,-191.0,0.00023253,2]
[371758154,1752418278628,-191.0,0.00023263,2]
[371758155,1752418278637,-1088.0,0.00023307,2]
[371758156,1752418278647,-191.0,0.00023309,2]
[371758157,1752418278657,-151.0,0.00023446,3]
[371758158,1752418278667,-191.0,0.00023516,2]
[371758159,1752418278676,-326.38,0.00023561,2]
[371758160,1752418278686,-326.38,0.00023561,2]
[371758161,1752418278697,-326.38,0.00023561,2]
[371758162,1752418278706,-326.38,0.00023561,2]
[371758163,1752418278716,-326.38,0.00023561,2]
[371758164,1752418278726,-326.38,0.00023561,2]
[371758165,1752418278738,-326.38,0.00023561,2]
[371758166,1752418278748,-326.38,0.00023561,2]
[371758167,1752418278758,-326.38,0.00023561,2]
[371758168,1752418278768,-326.38,0.00023561,2]
[371758169,1752418278778,-326.38,0.00023561,2]
[371758170,1752418278787,-326.38,0.00023561,2]
[371758171,1752418278797,-326.38,0.00023561,2]
[371758172,1752418278807,-326.38,0.00023561,2]
[371758173,1752418278816,-326.38,0.00023561,2]
[371758174,1752418278826,-326.38,0.00023561,2]
[371758175,1752418278835,-326.38,0.00023561,2]
[371758176,1752418278941,-326.38,0.00023561,2]
[371758177,1752418278950,-326.38,0.00023561,2]
[371758178,1752418278960,-326.38,0.00023561,2]
[371758179,1752418278970,-326.38,0.00023561,2]
[371758180,1752418278981,-326.38,0.00023561,2]
[371758181,1752418278993,-326.38,0.00023561,2]
[371758182,1752418279002,-326.61387242,0.00023561,2]
[371758183,1752418279012,-191.0,0.00023632,2]
[371758184,1752418279021,-2754.83870561,0.00023653,2]
[371758185,1752418279031,-191.0,0.00023657,2]
[371758186,1752418279041,-239.84119403,0.00023666,2]
[371758187,1752418279050,-420.0,0.00023709,2]
[371758188,1752418279060,-990.8768315,0.00023753,3]
[371758189,1752418279070,-191.0,0.00023872,2]
[371758190,1752418279079,-191.0,0.00023984,2]
[371758191,1752418279088,-191.0,0.00024091,2]
[371758192,1752418279104,-481.46993009,0.000242,2]
[371758193,1752418279114,-191.0,0.0002424,2]
[371758194,1752418279124,-191.0,0.00024344,2]
[371758195,1752418279134,-191.0,0.00024353,2]
[371758196,1752418279144,-428.9497036,0.00024384,2]
[371758197,1752418279154,-428.9497036,0.00024384,2]
[371758198,1752418279164,-428.9497036,0.00024384,2]
[371758199,1752418279174,-428.9497036,0.00024384,2]
[371758200,1752418279184,-173.0705536,0.00024384,2]
[371758201,1752418279193,-608.562985,0.00024401,4]
[371758202,1752418279203,-481.46993009,0.00024419,2]
[371758203,1752418279214,-2754.83870561,0.00024459,2]
[371758204,1752418279229,-343.5350398,0.00024466,2]
[371758205,1752418279238,-179.1555185,0.00024466,2]
[371758206,1752418279248,-620.1947922,0.00024466,2]
[371758207,1752418279258,-191.0,0.0002447,2]
[371758208,1752418279268,-159.6475778,0.00024521,2]
[371758209,1752418279279,-198.9233585,0.00024521,2]
[371758210,1752418279288,-1152.8200467,0.00024521,2]
[371758211,1752418279299,-159.6475778,0.00024521,2]
[371758212,1752418279308,-153.0,0.00024521,2]
[371758213,1752418279317,-159.6475778,0.00024521,2]
[371758214,1752418279327,-159.6475778,0.00024521,2]
[371758215,1752418279336,-159.6475778,0.00024521,2]
[371758216,1752418279345,-153.0,0.00024521,2]
[371758217,1752418279355,-301.8480688,0.00024521,2]
[371758218,1752418279364,-153.0,0.00024521,2]
[371758219,1752418279374,-61954.09164753,0.00024651,2]
[371758220,1752418279383,-380.0,0.00024658,2]
[371758221,1752418279392,-500.0,0.00024658,2]
[371758222,1752418279402,-500.0,0.00024658,2]
[371758223,1752418279411,-500.0,0.00024685,2]
[371758224,1752418279420,-500.0,0.00024685,2]
[371758225,1752418279430,-500.0,0.00024713,2]
[371758226,1752418279439,-500.0,0.00024713,2]
[371758227,1752418279448,-500.0,0.0002474,2]
[371758228,1752418279458,-500.0,0.0002474,2]
[371758229,1752418279468,-500.0,0.00024768,2]
[371758230,1752418279480,-500.0,0.00024768,2]
[371758231,1752418279490,-153.0,0.00024795,2]
[371758232,1752418279499,-153.0,0.00024795,2]
[371758233,1752418279509,-153.0,0.00024795,2]
[371758234,1752418279519,-153.0,0.00024795,2]
[371758235,1752418279529,-153.0,0.00024795,2]
[371758236,1752418279539,-315.0557874,0.00024795,2]
[371758237,1752418279549,-500.0,0.00024795,2]
[371758238,1752418279558,-500.0,0.00024822,2]
[371758239,1752418279568,-500.0,0.0002485,2]
[371758240,1752418279577,-151.0,0.000249,3]
[371758241,1752418279587,-96499.66527894,0.000249,2]
[371758242,1752418280888,500.0,0.000162,3]
[371758243,1752418281061,230.0,0.00024018,14]
[371758244,1752418281198,1847.01853883,0.00016237,2]
[371758245,1752418281224,15812.05938225,0.00016237,2]
[371758247,1752418288335,364.868119,0.00024219,7]
[371758248,1752418288834,364.868119,0.00025,7]
[371758249,1752418294116,364.868119,0.00024219,7]
[371758250,1752418294574,364.868119,0.00025,7]
[371758251,1752418348321,4187.94061775,0.00016236,2]
[371758252,1752418348348,20000.0,0.00016236,2]
[371758253,1752418348373,20000.0,0.00016236,2]
[371758254,1752418348399,20000.0,0.00016236,2]
[371758255,1752418348424,20000.0,0.00016236,2]
[371758256,1752418348453,20000.0,0.00016236,2]
[371758257,1752418348477,18268.08406587,0.00016236,2]
[371758258,1752418358816,500.0,0.00025,7]
[371758259,1752418362317,191.463579,0.0001617,2]
[371758260,1752418366509,500.0,0.00025,7]
[371758261,1752418368005,500.0,0.00025,7]
[371758262,1752418368475,500.0,0.00025,7]
[371758263,1752418380580,862.09,0.000242,7]
[371758264,1752418399677,577.183168,0.00024651,7]
[371758265,1752418400226,577.183168,0.000249,7]
[371758266,1752418402739,577.183168,0.00025,7]
[371758267,1752418406628,577.183168,0.00024651,7]
[371758268,1752418407039,577.183168,0.000249,7]
[371758269,1752418407549,577.183164,0.00025,7]
[371758270,1752418409061,500.0,0.00025,7]
[371758271,1752418410342,500.0,0.00025,7]
[371758272,1752418410787,500.0,0.00025,7]
[371758273,1752418413507,1866.19,0.000227,7]
[371758274,1752418427184,1000.0,0.00025,7]
[371758275,1752418433628,1000.0,0.00025,7]
[371758276,1752418442347,1540.45235513,0.00016237,2]
[371758277,1752418442375,6118.62556603,0.00016237,2]
[371758278,1752418447447,151.242834,0.000249,7]
[371758279,1752418471656,1000.0,0.00025,7]
[371758280,1752418471758,151.0,0.00024651,7]
[371758281,1752418472152,151.0,0.000249,7]
[371758282,1752418472569,151.0,0.00025,7]
[371758283,1752418472734,1000.0,0.00025,7]
[371758284,1752418477602,500.0,0.00025,7]
[371758285,1752418478867,500.0,0.00025,7]
[371758286,1752418481314,3210.96,0.00025,120]
[371758287,1752418485488,500.0,0.00025,7]
[371758288,1752418485840,500.0,0.00025,7]
[371758289,1752418486214,151.0,0.00024651,7]
[371758290,1752418486338,500.0,0.00025,7]
[371758291,1752418486621,185.687327,0.000249,7]
[371758292,1752418486775,500.0,0.00025,7]
[371758293,1752418487290,500.0,0.00025,7]
[371758294,1752418488642,500.0,0.00025,7]
[371758295,1752418489165,500.0,0.00025,7]
[371758296,1752418510497,13881.37443397,0.00016236,2]
[371758297,1752418510523,20000.0,0.00016236,2]
[371758298,1752418510548,20000.0,0.00016236,2]
[371758299,1752418510572,20000.0,0.00016236,2]
[371758300,1752418510598,20000.0,0.00016236,2]
[371758301,1752418510623,20000.0,0.00016236,2]
[371758302,1752418510647,20000.0,0.00016236,2]
[371758303,1752418510675,6118.62556603,0.00016236,2]
[371758304,1752418512424,151.0,0.000249,7]
[371758305,1752418512872,151.0,0.00025,7]
[371758306,1752418518886,200.0,0.00024658,15]
[371758307,1752418520338,510.32730582,0.00025,7]
[371758308,1752418523403,775.89,0.000226,7]
[371758309,1752418524825,352.98556053,0.00016236,2]
[371758310,1752418551035,250.0,0.00025,7]
[371758311,1752418551946,250.0,0.00025,7]
[371758312,1752418552746,250.0,0.00025,7]
[371758313,1752418553350,250.0,0.00025,7]
[371758314,1752418556916,205.7549729,0.00021555,5]
[371758315,1752418557034,205.7549729,0.00021866,6]
[371758316,1752418557097,250.0,0.00025,7]